fUST/lending_fUST_20241121
["ID","MTS","AMOUNT","RATE_DAILY","PERIOD"]
[342908016,1732200660247,-752.78,0.00024931,2]
[342908017,1732200660257,-500.23,0.00024931,2]
[342908018,1732200660267,-500.0,0.00024931,2]
[342908019,1732200660277,-535.24,0.00024931,2]
[342908020,1732200660287,-500.0,0.00024931,2]
[342908021,1732200660297,-1249.29,0.00024931,2]
[342908022,1732200660307,-1383.2,0.00024931,2]
[342908023,1732200660449,-701.33,0.00024931,2]
[342908024,1732200660459,-826.31,0.00024931,2]
[342908025,1732200660469,-1189.47,0.00024931,2]
[342908026,1732200660478,-10039.04,0.00024931,2]
[342908027,1732200660488,-807.4,0.00024931,2]
[342908028,1732200660497,-1630.93,0.00024931,2]
[342908029,1732200660507,-500.0,0.00024931,2]
[342908030,1732200660516,-795.38,0.00024931,2]
[342908031,1732200660525,-500.0,0.00024931,2]
[342908032,1732200660535,-5687.01,0.00024931,2]
[342908033,1732200660545,-1357.59,0.00024931,2]
[342908034,1732200660555,-500.0,0.00024931,2]
[342908035,1732200660564,-4042.62,0.00024931,2]
[342908036,1732200660574,-500.0,0.00024931,2]
[342908037,1732200660584,-32605.67,0.00024931,2]
[342908038,1732200660594,-594.83,0.00024931,2]
[342908039,1732200660606,-634.91,0.00024931,2]
[342908040,1732200660617,-500.0,0.00024931,2]
[342908041,1732200660627,-500.0,0.00024931,2]
[342908042,1732200660637,-632.68,0.00024931,2]
[342908043,1732200660647,-505.73,0.00024931,2]
[342908044,1732200660657,-858.69,0.00024931,2]
[342908045,1732200660667,-612.48,0.00024931,2]
[342908046,1732200660677,-2090.7,0.00024931,2]
[342908047,1732200660687,-5650.4,0.00024931,2]
[342908048,1732200660696,-604.76,0.00024931,2]
[342908049,1732200660707,-500.0,0.00024931,2]
[342908050,1732200660717,-3018.72,0.00024931,2]
[342908051,1732200660727,-577.48,0.00024931,2]
[342908052,1732200660736,-500.0,0.00024931,2]
[342908053,1732200660746,-1242.48,0.00024931,2]
[342908054,1732200660755,-500.0,0.00024931,2]
[342908055,1732200660765,-7102.02,0.00024931,2]
[342908056,1732200660775,-731.24,0.00024931,2]
[342908057,1732200660784,-1955.78,0.00024931,2]
[342908058,1732200660794,-1391.16,0.00024931,2]
[342908059,1732200660803,-1504.17,0.00024931,2]
[342908060,1732200660813,-1389.53,0.00024931,2]
[342908061,1732200660822,-500.0,0.00024931,2]
[342908062,1732200660832,-1229.83,0.00024931,2]
[342908063,1732200660842,-1659.72,0.00024931,2]
[342908064,1732200660854,-694.49,0.00024931,2]
[342908065,1732200660865,-761.08,0.00024931,2]
[342908066,1732200660874,-665.48,0.00024931,2]
[342908067,1732200660883,-500.0,0.00024931,2]
[342908068,1732200660892,-851.55,0.00024931,2]
[342908069,1732200660902,-1000.0,0.00024968,7]
[342908070,1732200660911,-500.0,0.00024973,2]
[342908071,1732200660921,-500.0,0.00024973,2]
[342908072,1732200660930,-300.0,0.00025,2]
[342908073,1732200660939,-300.0,0.00025,2]
[342908074,1732200660948,-273.099999,0.00025,2]
[342908075,1732200660958,-300.0,0.00025,2]
[342908076,1732200660967,-1181.74057747,0.00025,2]
[342908077,1732200660977,-273.1,0.00025,2]
[342908078,1732200660986,-300.0,0.00025,2]
[342908079,1732200660996,-300.0,0.00025,2]
[342908080,1732200661005,-300.0,0.00025,2]
[342908081,1732200661015,-273.099999,0.00025,2]
[342908082,1732200661024,-300.0,0.00025,2]
[342908083,1732200661048,-300.0,0.00025,2]
[342908084,1732200661065,-273.099999,0.00025,2]
[342908085,1732200661086,-3706.52675629,0.00025,2]
[342908086,1732200661106,-1041.633799,0.00025,2]
[342908087,1732200661127,-387124.13478532,0.00025,2]
[342908088,1732200661416,-76292.22543562,0.00025,2]
[342908089,1732200662999,-500.0,0.0002179,2]
[342908090,1732200663010,-171.16,0.0002179,2]
[342908091,1732200663042,-328.84,0.0002179,2]
[342908092,1732200663052,-191.2848899,0.0002179,2]
[342908093,1732200663064,-308.7151101,0.0002179,2]
[342908094,1732200663075,-500.0,0.0002179,2]
[342908095,1732200663087,-500.0,0.0002179,2]
[342908096,1732200663097,-500.0,0.0002179,2]
[342908097,1732200663110,-500.0,0.0002179,2]
[342908098,1732200663120,-500.0,0.0002179,2]
[342908099,1732200663130,-500.0,0.0002179,2]
[342908100,1732200663139,-500.0,0.0002179,2]
[342908101,1732200663148,-500.0,0.0002179,2]
[342908102,1732200663159,-500.0,0.0002179,2]
[342908103,1732200663168,-511.46289511,0.0002179,2]
[342908104,1732200663178,-500.0,0.0002179,2]
[342908105,1732200663187,-366.54157091,0.0002179,2]
[342908106,1732200663199,-133.45842909,0.0002179,2]
[342908107,1732200663209,-500.0,0.0002179,2]
[342908108,1732200663219,-500.0,0.0002179,2]
[342908109,1732200663230,-500.0,0.0002179,2]
[342908110,1732200663239,-500.0,0.0002179,2]
[342908111,1732200663250,-500.0,0.0002179,2]
[342908112,1732200663259,-500.0,0.0002179,2]
[342908113,1732200663269,-500.0,0.0002179,2]
[342908114,1732200663279,-500.0,0.0002179,2]
[342908115,1732200663289,-500.0,0.0002179,2]
[342908116,1732200663298,-427.19434082,0.0002179,2]
[342908117,1732200663308,-500.0,0.0002179,2]
[342908118,1732200663318,-468.28538131,0.0002179,2]
[342908119,1732200663328,-446.21253783,0.0002179,2]
[342908120,1732200663338,-500.0,0.0002179,2]
[342908121,1732200663347,-500.0,0.0002179,2]
[342908122,1732200663362,-500.0,0.0002179,2]
[342908123,1732200663372,-500.0,0.0002179,2]
[342908124,1732200663382,-500.0,0.0002179,2]
[342908125,1732200663392,-500.0,0.0002179,2]
[342908126,1732200663402,-500.0,0.0002179,2]
[342908127,1732200663411,-500.0,0.0002179,2]
[342908128,1732200663420,-500.0,0.0002179,2]
[342908129,1732200663430,-500.0,0.0002179,2]
[342908130,1732200663439,-500.0,0.0002179,2]
[342908131,1732200663449,-500.0,0.0002179,2]
[342908132,1732200663458,-500.0,0.0002179,2]
[342908133,1732200663468,-500.0,0.0002179,2]
[342908134,1732200663478,-500.0,0.0002179,2]
[342908135,1732200663488,-500.0,0.0002179,2]
[342908136,1732200663497,-500.0,0.0002179,2]
[342908137,1732200663507,-500.0,0.0002179,2]
[342908138,1732200663517,-500.0,0.0002179,2]
[342908139,1732200663526,-500.0,0.0002179,2]
[342908140,1732200663536,-500.0,0.0002179,2]
[342908141,1732200663546,-500.0,0.0002179,2]
[342908142,1732200663555,-500.0,0.0002179,2]
[342908143,1732200663565,-500.0,0.0002179,2]
[342908144,1732200663574,-500.0,0.0002179,2]
[342908145,1732200663583,-500.0,0.0002179,2]
[342908146,1732200663593,-500.0,0.0002179,2]
[342908147,1732200663608,-500.0,0.0002179,2]
[342908148,1732200663618,-500.0,0.0002179,2]
[342908149,1732200663628,-500.0,0.0002179,2]
[342908150,1732200663637,-500.0,0.0002179,2]
[342908151,1732200663646,-500.0,0.0002179,2]
[342908152,1732200663655,-500.0,0.0002179,2]
[342908153,1732200663665,-500.0,0.0002179,2]
[342908154,1732200663674,-500.0,0.0002179,2]
[342908155,1732200663683,-500.0,0.0002179,2]
[342908156,1732200663693,-500.0,0.0002179,2]
[342908157,1732200663703,-500.0,0.0002179,2]
[342908158,1732200663713,-500.0,0.0002179,2]
[342908159,1732200663723,-500.0,0.0002179,2]
[342908160,1732200663733,-500.0,0.0002179,2]
[342908161,1732200663743,-500.0,0.0002179,2]
[342908162,1732200663753,-500.0,0.0002179,2]
[342908163,1732200663762,-500.0,0.0002179,2]
[342908164,1732200663773,-248.23489435,0.0002179,2]
[342908165,1732200663783,-500.0,0.0002179,2]
[342908166,1732200663793,-500.0,0.0002179,2]
[342908167,1732200663802,-500.0,0.0002179,2]
[342908168,1732200663813,-500.0,0.0002179,2]
[342908169,1732200663823,-500.0,0.0002179,2]
[342908170,1732200663833,-500.0,0.0002179,2]
[342908171,1732200663843,-500.0,0.0002179,2]
[342908172,1732200663855,-500.0,0.0002179,2]
[342908173,1732200663869,-500.0,0.0002179,2]
[342908174,1732200663879,-500.0,0.0002179,2]
[342908175,1732200663889,-500.0,0.0002179,2]
[342908176,1732200663898,-500.0,0.0002179,2]
[342908177,1732200663909,-500.0,0.0002179,2]
[342908178,1732200663918,-500.0,0.0002179,2]
[342908179,1732200663928,-500.0,0.0002179,2]
[342908180,1732200663938,-500.0,0.0002179,2]
[342908181,1732200663947,-500.0,0.0002179,2]
[342908182,1732200663957,-635.26428743,0.0002179,2]
[342908183,1732200663968,-500.0,0.0002179,2]
[342908184,1732200663978,-500.0,0.0002179,2]
[342908185,1732200663987,-500.0,0.0002179,2]
[342908186,1732200664000,-500.0,0.0002179,2]
[342908187,1732200664010,-500.0,0.0002179,2]
[342908188,1732200664020,-337.18929568,0.0002179,2]
[342908189,1732200664031,-500.0,0.0002179,2]
[342908190,1732200664041,-500.0,0.0002179,2]
[342908191,1732200664051,-500.0,0.0002179,2]
[342908192,1732200664061,-500.0,0.0002179,2]
[342908193,1732200664071,-500.0,0.0002179,2]
[342908194,1732200664083,-500.0,0.0002179,2]
[342908195,1732200664094,-500.0,0.0002179,2]
[342908196,1732200664107,-500.0,0.0002179,2]
[342908197,1732200664117,-573.62951466,0.0002179,2]
[342908198,1732200664129,-500.0,0.0002179,2]
[342908199,1732200664138,-500.0,0.0002179,2]
[342908200,1732200664149,-500.0,0.0002179,2]
[342908201,1732200664159,-500.0,0.0002179,2]
[342908202,1732200664170,-500.0,0.0002179,2]
[342908203,1732200664182,-500.0,0.0002179,2]
[342908204,1732200664192,-500.0,0.0002179,2]
[342908205,1732200664202,-500.0,0.0002179,2]
[342908206,1732200664212,-500.0,0.0002179,2]
[342908207,1732200664222,-500.0,0.0002179,2]
[342908208,1732200664232,-500.0,0.0002179,2]
[342908209,1732200664242,-500.0,0.0002179,2]
[342908210,1732200664251,-500.0,0.0002179,2]
[342908211,1732200664262,-500.0,0.0002179,2]
[342908212,1732200664273,-500.0,0.0002179,2]
[342908213,1732200664283,-500.0,0.0002179,2]
[342908214,1732200664293,-500.0,0.0002179,2]
[342908215,1732200664304,-500.0,0.0002179,2]
[342908216,1732200664314,-500.0,0.0002179,2]
[342908217,1732200664324,-500.0,0.0002179,2]
[342908218,1732200664335,-500.0,0.0002179,2]
[342908219,1732200664346,-500.0,0.0002179,2]
[342908220,1732200664362,-500.0,0.0002179,2]
[342908221,1732200664373,-500.0,0.0002179,2]
[342908222,1732200664383,-500.0,0.0002179,2]
[342908223,1732200664392,-500.0,0.0002179,2]
[342908224,1732200664401,-500.0,0.0002179,2]
[342908225,1732200664412,-500.0,0.0002179,2]
[342908226,1732200664422,-500.0,0.0002179,2]
[342908227,1732200664431,-500.0,0.0002179,2]
[342908228,1732200664441,-500.0,0.0002179,2]
[342908229,1732200664451,-500.0,0.0002179,2]
[342908230,1732200664462,-500.0,0.0002179,2]
[342908231,1732200664472,-500.0,0.0002179,2]
[342908232,1732200664482,-500.0,0.0002179,2]
[342908233,1732200664492,-500.0,0.0002179,2]
[342908234,1732200664502,-219.76648073,0.0002179,2]
[342908235,1732200664516,-280.23351927,0.0002179,2]
[342908236,1732200664526,-500.0,0.0002179,2]
[342908237,1732200664536,-500.0,0.0002179,2]
[342908238,1732200664546,-500.0,0.0002179,2]
[342908239,1732200664556,-500.0,0.0002179,2]
[342908240,1732200664566,-500.0,0.0002179,2]
[342908241,1732200664575,-500.0,0.0002179,2]
[342908242,1732200664585,-500.0,0.0002179,2]
[342908243,1732200664595,-500.0,0.0002179,2]
[342908244,1732200664609,-500.0,0.0002179,2]
[342908245,1732200664619,-500.0,0.0002179,2]
[342908246,1732200664629,-3540.28,0.00023287,2]
[342908247,1732200664639,-500.0,0.00023288,2]
[342908248,1732200664648,-500.0,0.00023288,2]
[342908249,1732200664658,-500.0,0.00023288,2]
[342908250,1732200664668,-500.0,0.00023288,2]
[342908251,1732200664677,-329.86686933,0.00023288,2]
[342908252,1732200664687,-3540.28,0.00023561,2]
[342908253,1732200664697,-3540.28,0.00023835,2]
[342908254,1732200664706,-3540.28,0.00024109,2]
[342908255,1732200664717,-3540.28,0.00024383,2]
[342908256,1732200664726,-1622.14657355,0.00024657,2]
[342908257,1732200664893,-160.0,0.00017,2]
[342908258,1732200664904,-798.59,0.00024657,2]
[342908259,1732200665195,-330.0,0.00022055,2]
[342908260,1732200665206,-1536.35965081,0.00022589,2]
[342908261,1732200665215,-1119.54342645,0.00024657,2]
[342908262,1732200665225,-3540.28,0.00024931,2]
[342908263,1732200665234,-56102.70894135,0.00025,2]
[342908264,1732200665536,-555.78,0.00021917,2]
[342908265,1732200665546,-500.0,0.00021917,2]
[342908266,1732200665556,-56752.93180547,0.00025,2]
[342908267,1732200665618,-555.4026576,0.00025,2]
[342908268,1732200753129,183.0,0.00026,60]
[342908275,1732201243513,260.35577568,0.00022,30]
[342908276,1732201472095,500.0,0.00026,60]
[342908396,1732201832643,-287.86649387,0.00013773,2]
[342908398,1732201832653,-194.94459352,0.00013873,2]
[342908400,1732201832663,-207.23637716,0.00013873,2]
[342908402,1732201832674,-269.808516,0.00013973,2]
[342908404,1732201832684,-380.18731545,0.00016079,2]
[342908413,1732201832757,-2375.78483045,0.00016079,2]
[342908415,1732201832767,-250.0,0.00016354,2]
[342908418,1732201832777,-160.0,0.00017,2]
[342908421,1732201832786,-863.92431957,0.000171,2]
[342908423,1732201832796,-300.0,0.00017194,2]
[342908425,1732201832805,-300.0,0.00017194,2]
[342908427,1732201832815,-7433.43975914,0.00017194,2]
[342908430,1732201832827,-10944.56024086,0.00017194,2]
[342908432,1732201832836,-1035.50561146,0.00017195,2]
[342908434,1732201832846,-10672.84120462,0.00017195,2]
[342908494,1732201839044,-495.78620954,0.00017195,2]
[342908495,1732201839058,-993.0901182,0.00017195,2]
[342908496,1732201839071,-2122.5777616,0.00017195,2]
[342908497,1732201839085,-3712.5,0.00017195,2]
[342908498,1732201839099,-3074.72196477,0.00017195,2]
[342908778,1732201843984,-160.0,0.00017,2]
[342908779,1732201843995,-3828.48274127,0.00017195,2]
[342908780,1732201844005,-213.33205762,0.000172,2]
[342908781,1732201844015,-213.33205761,0.000172,2]
[342908782,1732201844025,-70.94489221,0.00017278,2]
[342908830,1732201844700,-433.10899229,0.00017278,2]
[342908833,1732201844715,-436.83691984,0.00017307,2]
[342908836,1732201844728,-641.99132785,0.00017307,2]
[342908840,1732201844741,-2195.06152331,0.00017307,2]
[342908844,1732201844752,-42.45100605,0.00017441,2]
[342909028,1732201846777,-3760.30648835,0.00017441,2]
[342909029,1732201846787,-1168.41227637,0.00017892,2]
[342909030,1732201846796,-152.0,0.00017935,2]
[342909031,1732201846806,-3273.889771,0.00017992,2]
[342909032,1732201846817,-3000.0,0.00018384,2]
[342909033,1732201846827,-178.66775489,0.00018635,2]
[342909034,1732201846837,-3273.889771,0.00018677,2]
[342909035,1732201846847,-2710.993291,0.00018682,2]
[342909037,1732201846857,-7728.04357439,0.00018735,2]
[342910487,1732201992821,500.0,0.00024,120]
[342910488,1732201993600,500.0,0.00024,120]
[342910489,1732201994371,500.0,0.00024,120]
[342910490,1732201995130,500.0,0.00024,120]
[342910491,1732201995892,500.0,0.00024,120]
[342910492,1732201996835,500.0,0.00024,120]
[342910493,1732201997720,500.0,0.00024,120]
[342910494,1732201998455,500.0,0.00024,120]
[342910495,1732201999229,500.0,0.00024,120]
[342910496,1732202000006,500.0,0.00024,120]
[342910497,1732202000778,500.0,0.00024,120]
[342910498,1732202001556,500.0,0.00024,120]
[342910499,1732202002365,500.0,0.00024,120]
[342910500,1732202003122,500.0,0.00024,120]
[342910501,1732202003889,373.47,0.00024,120]
[342910504,1732202286648,614.3474889,0.00025999,60]
[342910520,1732202639004,172.31065222,0.0002,30]
[342910674,1732203032595,-300.0,0.00013399,2]
[342910675,1732203032606,-300.0,0.00013399,2]
[342910676,1732203032616,-1616.61324487,0.00013399,2]
[342910677,1732203032628,-4703.38675513,0.00013399,2]
[342910678,1732203032637,-4419.29074007,0.000134,2]
[342910679,1732203032649,-970.83737126,0.000134,2]
[342910724,1732203034913,-516.82479156,0.000134,2]
[342910725,1732203034925,-895.32519204,0.000134,2]
[342910733,1732203038741,-1171.31000025,0.000134,2]
[342910877,1732203040457,-2899.90317666,0.000134,2]
[342910879,1732203040470,-1458.98085781,0.000134,2]
[342910881,1732203040482,-927.25806407,0.000134,2]
[342910884,1732203040495,-370.0,0.000134,2]
[342911192,1732203043618,-3217.49699213,0.000134,2]
[342911194,1732203043627,-252.41768775,0.00013873,2]
[342911196,1732203043637,-256.31809,0.00013973,2]
[342911198,1732203043646,-268.04018605,0.00014114,2]
[342911200,1732203043656,-420.0,0.00014688,2]
[342911202,1732203043666,-420.0,0.00014739,2]
[342911204,1732203043676,-109.72704407,0.00014827,2]
[342911206,1732203043688,-580.61003024,0.00014827,2]
[342911208,1732203043699,-11108.88891976,0.00014827,2]
[342911211,1732203043719,-1646.64998199,0.00014827,2]
[342911213,1732203043735,-12144.46109825,0.00014827,2]
[342911215,1732203043745,-91.89007634,0.000149,2]
[342911224,1732203043825,-470.36147446,0.000149,2]
[342911226,1732203043835,-436.33460741,0.00015,2]
[342911228,1732203043846,-587.0,0.00016102,2]
[342911230,1732203043856,-587.0,0.00016213,2]
[342911232,1732203043866,-160.0,0.00017,2]
[342911234,1732203043875,-823.0,0.00017651,2]
[342911236,1732203043884,-1022.36074185,0.00017734,2]
[342911238,1732203043894,-22732.25856379,0.00017811,2]
[342911526,1732203046669,-16496.24999061,0.00017811,2]
[342911528,1732203046679,-823.0,0.00017834,2]
[342911530,1732203046689,-469.38745,0.00018086,2]
[342911532,1732203046698,-493.2677209,0.00018099,2]
[342911534,1732203046714,-278.2162715,0.00018237,2]
[342911536,1732203046724,-250.0,0.00018481,2]
[342911538,1732203046733,-200.0,0.000185,2]
[342911539,1732203046743,-3419.20994875,0.00018684,4]
[342911541,1732203046752,-6463.66861824,0.00018988,4]
[342911544,1732203046765,-18856.5380344,0.00018988,4]
[342911567,1732203047005,-5306.52969537,0.00018988,4]
[342911569,1732203047015,-465.9504154,0.00019079,2]
[342911571,1732203047026,-171.616229,0.00019178,2]
[342911573,1732203047035,-1152.0,0.00019349,2]
[342911575,1732203047045,-1022.36074178,0.00019368,2]
[342911577,1732203047055,-163.60523,0.00019544,2]
[342911579,1732203047065,-420.0,0.00019617,2]
[342911581,1732203047075,-51771.50733946,0.00020377,2]
[342911583,1732203047084,-256.31809,0.00020447,2]
[342911584,1732203047093,-438.46805976,0.00020999,2]
[342911586,1732203047103,-163.14282015,0.00020999,2]
[342911588,1732203047113,-500.0,0.00020999,2]
[342911590,1732203047122,-500.0,0.00020999,2]
[342911592,1732203047132,-500.0,0.00020999,2]
[342911594,1732203047141,-500.0,0.00020999,2]
[342911596,1732203047150,-500.0,0.00020999,2]
[342911598,1732203047160,-500.0,0.00020999,2]
[342911600,1732203047170,-500.0,0.00020999,2]
[342911602,1732203047180,-500.0,0.00020999,2]
[342911604,1732203047190,-617.70542897,0.00020999,2]
[342911605,1732203047201,-500.0,0.00020999,2]
[342911606,1732203047216,-194.24832159,0.00020999,2]
[342911607,1732203047227,-500.0,0.00020999,2]
[342911609,1732203047237,-500.0,0.00020999,2]
[342911611,1732203047247,-500.0,0.00020999,2]
[342911613,1732203047258,-500.0,0.00020999,2]
[342911615,1732203047268,-500.0,0.00020999,2]
[342911617,1732203047278,-500.0,0.00020999,2]
[342911619,1732203047287,-500.0,0.00020999,2]
[342911621,1732203047296,-500.0,0.00020999,2]
[342911623,1732203047306,-500.0,0.00020999,2]
[342911625,1732203047315,-500.0,0.00020999,2]
[342911627,1732203047326,-500.0,0.00020999,2]
[342911629,1732203047335,-483.71892957,0.00020999,2]
[342911631,1732203047345,-307.36295147,0.00020999,2]
[342911633,1732203047354,-500.0,0.00020999,2]
[342911635,1732203047364,-500.0,0.00020999,2]
[342911637,1732203047373,-500.0,0.00020999,2]
[342911639,1732203047383,-500.0,0.00020999,2]
[342911641,1732203047392,-500.0,0.00020999,2]
[342911643,1732203047402,-500.0,0.00020999,2]
[342911645,1732203047411,-500.0,0.00020999,2]
[342911647,1732203047421,-500.0,0.00020999,2]
[342911649,1732203047431,-500.0,0.00020999,2]
[342911651,1732203047440,-500.0,0.00020999,2]
[342911653,1732203047455,-500.0,0.00020999,2]
[342911655,1732203047465,-500.0,0.00020999,2]
[342911657,1732203047475,-500.0,0.00020999,2]
[342911659,1732203047484,-500.0,0.00020999,2]
[342911661,1732203047494,-535.80055165,0.00020999,2]
[342911663,1732203047503,-500.0,0.00020999,2]
[342911665,1732203047515,-500.0,0.00020999,2]
[342911667,1732203047525,-500.0,0.00020999,2]
[342911669,1732203047535,-7524.52781258,0.00021,2]
[342911671,1732203047545,-1022.36074178,0.00021001,2]
[342911673,1732203047556,-281.52422814,0.000212,2]
[342911674,1732203047566,-1613.0,0.00021211,2]
[342911675,1732203047575,-3806.0,0.000216,2]
[342911676,1732203047584,-617.512,0.00021668,2]
[342911677,1732203047593,-1106.0,0.00021668,2]
[342911678,1732203047602,-2382.0,0.00021668,2]
[342911679,1732203047611,-204.08224895,0.00021816,2]
[342911680,1732203047621,-212.5170974,0.00021816,2]
[342911681,1732203047630,-245.3743901,0.00021816,2]
[342911682,1732203047639,-330.0,0.00021817,2]
[342911683,1732203047648,-95197.09997128,0.00021817,2]
[342915873,1732204238823,-300.0,9.999e-05,2]
[342915875,1732204238833,-300.0,9.999e-05,2]
[342915877,1732204238843,-403.96152957,0.0001,2]
[342915880,1732204238855,-296.13984535,0.0001,2]
[342915882,1732204238864,-7444.26578177,0.0001,2]
[342915918,1732204239327,-1386.41187209,0.0001,2]
[342915919,1732204239339,-495.63407991,0.0001,2]
[342916018,1732204240700,-878.927089,0.0001,2]
[342916020,1732204240714,-391.91032371,0.0001,2]
[342916300,1732204243833,-437.27003193,0.0001,2]
[342916302,1732204243844,-6490.00000001,0.0001,2]
[342916304,1732204243855,-5773.77928606,0.0001,2]
[342916567,1732204246853,-6268.67782989,0.0001,2]
[342916569,1732204246866,-48986.80189183,0.0001,2]
[342916571,1732204246875,-233.31469768,0.00010859,2]
[342916573,1732204246886,-343.11,0.00010959,2]
[342916575,1732204246897,-285.93,0.00010959,2]
[342916578,1732204246906,-238.27,0.00010959,2]
[342916580,1732204246916,-198.56,0.00010959,2]
[342916582,1732204246925,-420.0,0.00010999,2]
[342916584,1732204246935,-420.0,0.00010999,2]
[342916586,1732204246944,-587.0,0.00012099,2]
[342916588,1732204246953,-587.0,0.00012099,2]
[342916590,1732204246962,-5578.4568955,0.00012851,2]
[342916592,1732204246972,-884.10722293,0.000129,2]
[342916594,1732204246981,-1352.270948,0.00013285,2]
[342916596,1732204246991,-823.0,0.00013309,2]
[342916599,1732204247001,-823.0,0.00013309,2]
[342916601,1732204247011,-884.10722292,0.00013398,2]
[342916603,1732204247020,-869.277331,0.00013699,2]
[342916605,1732204247030,-275.986281,0.00013973,2]
[342916607,1732204247039,-745.0,0.0001464,2]
[342916609,1732204247048,-1152.0,0.0001464,2]
[342916611,1732204247058,-160.0,0.00015,2]
[342916613,1732204247067,-884.10722292,0.00016037,2]
[342916615,1732204247078,-1613.0,0.00016103,2]
[342916617,1732204247087,-233.31469768,0.00016288,2]
[342916619,1732204247097,-3000.0,0.00016517,2]
[342916621,1732204247110,-24900.0,0.00016575,2]
[342916623,1732204247120,-384.2306696,0.00016957,2]
[342916625,1732204247132,-2258.0,0.00017714,2]
[342916627,1732204247141,-884.10722292,0.00018676,2]
[342916629,1732204247151,-161.5136393,0.00019178,2]
[342916631,1732204247161,-3162.0,0.00019485,2]
[342916634,1732204247170,-196.0,0.0002,2]
[342916636,1732204247181,-275.986281,0.00020447,2]
[342916638,1732204247190,-869.277331,0.00020548,2]
[342916640,1732204247199,-268.10098021,0.00020898,2]
[342916642,1732204247208,-884.10722292,0.00021316,2]
[342916644,1732204247218,-2641.0,0.00021434,2]
[342916646,1732204247228,-165.10390448,0.00021616,2]
[342916648,1732204247237,-1000.0,0.00021716,2]
[342916650,1732204247247,-233.31469768,0.00021717,2]
[342916652,1732204247257,-188.704,0.00021768,2]
[342916654,1732204247267,-530.0,0.00021768,2]
[342916656,1732204247276,-1106.0,0.00021768,2]
[342916658,1732204247286,-2382.0,0.00021768,2]
[342916660,1732204247296,-178.964,0.00021768,2]
[342916662,1732204247306,-250.0,0.00021768,2]
[342916664,1732204247315,-7199.999999,0.000218,2]
[342916666,1732204247324,-500.0,0.00021815,2]
[342916668,1732204247333,-409.14126382,0.00021815,2]
[342916670,1732204247343,-500.0,0.00021815,2]
[342916672,1732204247352,-500.0,0.00021815,2]
[342916674,1732204247362,-500.0,0.00021815,2]
[342916676,1732204247371,-500.0,0.00021815,2]
[342916678,1732204247383,-250.8359936,0.00021815,2]
[342916680,1732204247393,-500.0,0.00021815,2]
[342916682,1732204247402,-500.0,0.00021815,2]
[342916684,1732204247411,-500.0,0.00021815,2]
[342916686,1732204247421,-500.0,0.00021815,2]
[342916688,1732204247430,-649.43185075,0.00021815,2]
[342916690,1732204247440,-500.0,0.00021815,2]
[342916692,1732204247449,-500.0,0.00021815,2]
[342916694,1732204247459,-500.0,0.00021815,2]
[342916696,1732204247468,-500.0,0.00021815,2]
[342916698,1732204247478,-500.0,0.00021815,2]
[342916700,1732204247488,-500.0,0.00021815,2]
[342916702,1732204247497,-596.65158767,0.00021815,2]
[342916704,1732204247507,-500.0,0.00021815,2]